Cogmind - Beta 16 @@@ ROGUE MODE // 2025.12.27 @ 01:32:51 Player: Centeno Result: Self-destructed Performance ------------- Evolutions (2) 1000 Regions Visited (3) 600 Robots Destroyed (21) 105 Value Destroyed (481) 481 Prototype IDs (6) 120 Alien Tech Used (0) 0 Bonus (0) 0 TOTAL SCORE: 2306 Bonus ------- None Cogmind --------- Core Integrity 314/550 Matter 218/300 Energy 125/125 System Corruption 0% Temperature Cool (0) Movement Hovering (60) Location -8/Materials Parts ------- > --- POWER (1) -------- Light Ion Engine > --- PROPULSION (4) --- Gravmag System > --- UTILITY (4) ------ Machine Analyzer Seismic Detector Core Analyzer Hacking Suite > --- WEAPON (2) ------- (None) > --- INVENTORY (5) ---- Cooling System Melee Analysis Suite Heavy Assault Rifle Grenade Launcher Peak State ------------ > --- POWER ------------ Light Ion Engine > --- PROPULSION ------- Gravmag System Gravmag System Gravmag System Gravmag System > --- UTILITY ---------- Machine Analyzer Core Analyzer Hacking Suite > --- WEAPON ----------- Mining Claw > --- INVENTORY -------- Cooling System Seismic Detector Heavy Assault Rifle Grenade Launcher [Rating: 28] Favorites ----------- Power Light Ion Engine Engine Light Ion Engine Propulsion Hover Unit Leg Aluminum Leg Wheel Wheel Hover Unit Hover Unit Flight Unit Flight Unit Utility Hacking Suite Device Seismic Detector Storage Small Storage Unit Processor Transport Network Coupler Hackware Hacking Suite Protection Weapon Shielding Weapon Mining Claw Energy Gun EM Pulse Gun Ballistic Gun Assault Rifle Slashing Weapon Mining Claw Build | -11 -10 -9 -8 ------- Run | Yrd Mat Mat Mat Slots Evolved 4 | . . 2 2 Power . | . . . . Propulsion 2 | . . 1 1 Utility 2 | . . 1 1 Weapon . | . . . . Parts Attached 43 | 4 18 14 7 Power 8 | 1 4 2 1 Engine 8 | 1 4 2 1 Core . | . . . . Reactor . | . . . . Propulsion 18 | . 7 7 4 Treads . | . . . . Leg 2 | . 2 . . Wheel 2 | . 2 . . Hover 10 | . 3 3 4 Flight 4 | . . 4 . Utility 10 | 2 3 3 2 Device 3 | 1 1 1 . Storage 1 | 1 . . . Processor 3 | . . 1 2 Hackware 2 | . 1 1 . Protection 1 | . 1 . . Artifact . | . . . . Weapon 7 | 1 4 2 . Energy Gun 3 | . 2 1 . Energy Cannon . | . . . . Ballistic Gun 3 | 1 1 1 . Ballistic Cannon . | . . . . Launcher . | . . . . Special Weapon . | . . . . Impact Weapon . | . . . . Slashing Weapon 1 | . 1 . . Piercing Weapon . | . . . . Special Melee Weapon . | . . . . Unidentified Prototypes . | . . . . Corrupted Parts 1 | . 1 . . System Corruption 2 | . 2 . . Parts Lost 24 | . 5 12 7 Power 4 | . 1 2 1 Propulsion 13 | . 2 7 4 Utility 3 | . 1 1 1 Weapon 4 | . 1 2 1 Highest Loss Streak 7 | . 5 7 5 To Critical Strikes . | . . . . Average Backups 4 | 4 4 3 4 Power . | . . . . Propulsion 1 | 1 1 1 . Utility . | . . . 2 Weapon 2 | 1 2 1 2 Tool/Special . | . . . . Unused Backups 5 | . 2 . 3 Power . | . . . . Propulsion 2 | . 2 . . Utility 2 | . . . 2 Weapon 1 | . . . 1 Tool/Special . | . . . . Average Slot Usage (%) 87 | . 94 84 55 Engine 11 | . 13 9 9 Leg 1 | . 1 . . Wheel 5 | . 8 . . Hover 15 | . 16 14 10 Flight 4 | . . 13 4 Device 9 | . 12 7 2 Storage 3 | . 6 . . Processor 1 | . . 3 8 Hackware 10 | . 7 14 11 Energy Gun 10 | . 11 11 . Ballistic Gun 6 | . 10 1 . Slashing Weapon 6 | . 4 7 9 Peak Build Rating 28 | 4 9 13 28 Average Rating 8 | 2 7 10 14 On Entrance 5 | . 4 9 9 Avg Prop Armor Cover (%) 7 | . 9 7 . Naked Turns . | . . . . Heaviest Build 13 | 11 13 9 6 Greatest Support 36 | 3 26 21 36 Greatest Overweight (x) 3 | 3 3 1 . Average Overweight (x) . | 1 . . . Largest Inventory Capacity 8 | 8 8 5 5 Average Capacity 5 | 7 6 5 5 Most Carried 8 | 5 8 5 5 Average Carried 4 | 4 4 3 4 Final Capacity 8 | 8 5 5 5 Final Carried 5 | 5 5 5 4 Class Distribution -------------------- 59% | Mutant 32% | Scavenger-Mutant 8% | Hacker-Mutant Dominant Class ---------------- Mutant | -10/Materials Scavenger-Mutant | -9/Materials Mutant | -8/Materials Resources | -11 -10 -9 -8 ----------- Run | Yrd Mat Mat Mat Matter Collected 690 | 188 340 162 . Remotely . | . . . . Salvage Created 587 | 25 366 196 . Parts 53 | 5 31 17 . Haulers Intercepted . | . . . . Recyclers Shooed 2 | . 2 . . Parts Field Recycled . | . . . . Retrieved Matter . | . . . . Parts Self-Destructed . | . . . . Prevented . | . . . . Parts Restored . | . . . . Kills | -11 -10 -9 -8 ------- Run | Yrd Mat Mat Mat Combat Hostiles Destroyed 12 | . 7 5 . Guns 11 | . 6 5 . AOE 1 | . 1 . . Classes Destroyed 6 | 1 3 2 . Tunneler 1 | 1 . . . Operator 2 | . 1 1 . Watcher 6 | . 3 3 . Swarmer 4 | . . 4 . Grunt 7 | . 7 . . Sentry 1 | . . 1 . Best Kill Streak 5 | 1 5 3 . Combat Bots Only 5 | . 5 3 . Max Kills in Single Turn 1 | 1 1 1 . Gunslinging . | . . . . Exploded 1 | . 1 . . Melee . | . . . . Uniques/NPCs Destroyed . | . . . . Combat | -11 -10 -9 -8 -------- Run | Yrd Mat Mat Mat Hostile Shots Fired 204 | . 75 68 61 Missed 69 | . 21 23 25 Hits 135 | . 54 45 36 Projectile 135 | . 54 45 36 Critical Strikes 3 | . 1 1 1 Damage Taken 1764 | . 654 563 547 Core 584 | . 228 120 236 Absorbed by Shields . | . . . . Redirected to Shielding 13 | . 13 . . Core Remaining (%) 59 | 100 8 70 . Volleys Fired 61 | 4 39 18 . Largest 2 | 1 2 2 . Hottest 90 | 20 60 90 . Shots Fired 102 | 4 75 23 . Gun 102 | 4 75 23 . Cannon . | . . . . Launcher . | . . . . Special . | . . . . Kinetic 64 | 4 60 . . Thermal 18 | . . 18 . Explosive . | . . . . Electromagnetic 20 | . 15 5 . Robot Hit Streak 7 | 2 7 3 . Robot Miss Streak 5 | 2 3 5 . Penetration Max . | . . . . Secondary Targets 2 | . 2 . . Max Gunslinging Chain 1 | . 1 . . Shots Hit Robots 68 | 2 51 15 . Core Hits 32 | 1 22 9 . Critical Kills . | . . . . Critical Parts Destroyed . | . . . . Critical Strikes . | . . . . Melee Attacks 54 | . 18 28 8 Impact . | . . . . Slashing 54 | . 18 28 8 Piercing . | . . . . Sneak Attacks 3 | . 1 2 . Combat Hostiles . | . . . . Follow-up Attacks . | . . . . Damage Inflicted 986 | 21 675 290 . Guns 753 | 21 593 139 . Cannons . | . . . . Explosions 31 | . 31 . . Melee 201 | . 50 151 . Ramming 1 | . 1 . . Kinetic 424 | 21 403 . . Thermal 170 | . 31 139 . Explosive . | . . . . Electromagnetic 190 | . 190 . . Impact . | . . . . Slashing 201 | . 50 151 . Piercing . | . . . . Highest Corruption 2 | . 2 . . Average Corruption 2 | . 2 . . Corruption Purged . | . . . . Corruption Blocked . | . . . . Effects 7 | . 7 . . Message Errors 1 | . 1 . . Matter Fused 2 | . 2 . . Heat Flow Errors 2 | . 2 . . Data Loss (minor) 1 | . 1 . . Alerts 1 | . 1 . . Overload Shots . | . . . . Overflow Damage 42 | . 20 22 . Projectiles . | . . . . Explosions . | . . . . Melee 42 | . 20 22 . Knockbacks . | . . . . Impact . | . . . . Kinetic . | . . . . Secondary . | . . . . Self-Inflicted Damage . | . . . . Shots . | . . . . Rammed 1 | . 1 . . Targets Rammed 1 | . 1 . . Kicked . | . . . . Crushed . | . . . . Highest Temperature 139 | . 139 81 7 Average Temperature 28 | . 23 35 7 Received Heat Transfer 771 | . 381 201 189 Siege Activations . | . . . . Martial Activations . | . . . . Shielding Activations . | . . . . Robots Disrupted . | . . . . Combat Hostiles . | . . . . Robots Corrupted . | . . . . Combat Hostiles . | . . . . Parts Fried . | . . . . Impact Corruptions . | . . . . Robots Melted . | . . . . Combat Hostiles . | . . . . Parts Melted 1 | . . 1 . Heat Transferred 457 | . 50 407 . Parts Sabotaged . | . . . . Parts Stolen . | . . . . Parts Stripped . | . . . . Power Chain Reactions 1 | . 1 . . Alert | -11 -10 -9 -8 ------- Run | Yrd Mat Mat Mat Maximum Alert Level . | . . . . Low Security (%) 100 | 100 100 100 100 Level 1 . | . . . . Level 2 . | . . . . Level 3 . | . . . . Level 4 . | . . . . Level 5 . | . . . . High Security . | . . . . Max Security . | . . . . Peak Influence 145 | 5 100 145 55 Initial 54 | . . 38 54 Average 40 | . 28 82 22 Influence Increases 917 | 5 386 392 134 Destroy 0b10 Robot/C 240 | . 140 100 . Destroy 0b10 Robot/NC 45 | 5 20 20 . Destroy Leader 62 | . 36 26 . Successful Hack 43 | . 11 23 9 Disable Machine 15 | . 15 . . Destroy Structure 32 | . 14 13 5 Partial Spotted 60 | . 15 . 45 Lose Combat Pursuer 420 | . 135 210 75 Influence Decreases 917 | 5 294 354 264 Entered New Map 130 | . . 54 76 Time Decay 456 | 5 217 180 54 Lost Part 223 | . 50 120 53 Purge Threat 108 | . 27 . 81 Squads Dispatched 10 | . 4 3 3 Investigation 5 | . 3 1 1 Extermination . | . . . . Reinforcement 5 | . 1 2 2 Assault . | . . . . Garrison . | . . . . Intercept . | . . . . Searches Triggered . | . . . . Construction Impeded . | . . . . Haulers Reinforced . | . . . . Active Scanning Responses . | . . . . Cargo Convoy Interrupts . | . . . . Stealth | -11 -10 -9 -8 --------- Run | Yrd Mat Mat Mat Distress Signals 5 | . 2 2 1 Communications Jammed . | . . . . Distress Signals . | . . . . Times Spotted 72 | . 25 27 20 Peak Tracking Total 13 | . 5 11 13 Tactical Retreats 11 | . 3 6 2 Traps | -11 -10 -9 -8 ------- Run | Yrd Mat Mat Mat Traps Triggered 4 | . 3 1 . Indirectly . | . . . . Trap Hack Attempts . | . . . . Triggered . | . . . . Disarmed . | . . . . Reprogrammed . | . . . . Reused . | . . . . Traps Extracted . | . . . . Installed . | . . . . Triggered . | . . . . Machines | -11 -10 -9 -8 ---------- Run | Yrd Mat Mat Mat Machines Disabled 2 | . 2 . . Max in Single Turn 1 | . 1 . . Machines Repaired . | . . . . Machines Dismantled . | . . . . Machines Sabotaged . | . . . . Overloaded Fab Kills . | . . . . Hacking | -11 -10 -9 -8 --------- Run | Yrd Mat Mat Mat Machines Accessed 13 | . 6 4 3 Terminals 9 | . 5 2 2 Fabricators . | . . . . Repair Stations . | . . . . Recycling Units 2 | . 1 . 1 Scanalyzers 2 | . . 2 . Garrison Access . | . . . . Total Hacks 41 | . 19 11 11 Successful 25 | . 13 5 7 Failed 14 | . 5 5 4 Catastrophic . | . . . . Database Lockouts 2 | . 1 1 . Manual 23 | . 12 3 8 Terminals 32 | . 17 5 10 Fabricators . | . . . . Repair Stations . | . . . . Recycling Units 3 | . 2 . 1 Scanalyzers 6 | . . 6 . Garrison Access . | . . . . Terminal Hacks 14 | . 9 1 4 Robot Analysis 1 | . 1 . . Prototype ID Bank 3 | . 1 1 1 Branch Access Points 1 | . 1 . . Terminal Index 1 | . . . 1 Alert Level 1 | . 1 . . Unreport Threat 3 | . 1 . 2 Locate Traps 1 | . 1 . . Dispatch Records 1 | . 1 . . Investigation Status 1 | . 1 . . Zone Layout 1 | . 1 . . Fabricator Hacks . | . . . . Repair Station Hacks . | . . . . Recycling Unit Hacks 3 | . 2 . 1 Report Inventory 2 | . 1 . 1 Retrieve Components 1 | . 1 . . Scanalyzer 3 | . . 3 . Retrieve Study 3 | . . 3 . Garrison Access Hacks . | . . . . Unauthorized Hacks 5 | . 2 1 2 Terminals 5 | . 2 1 2 Botnet 5 | . 2 1 2 Fabricators . | . . . . Repair Stations . | . . . . Recycling Units . | . . . . Scanalyzers . | . . . . Garrison Access . | . . . . Data Cores Recovered . | . . . . Used . | . . . . Hacking Detections 11 | . 4 4 3 Full Trace Events 3 | . 1 1 1 Feedback Events . | . . . . Feedback Blocked . | . . . . Robot Schematics Acquired . | . . . . Robots Built . | . . . . Authchips . | . . . . Time . | . . . . Total Robot Build Rating . | . . . . Part Schematics Acquired . | . . . . Parts Built . | . . . . Authchips . | . . . . Time . | . . . . Total Part Build Rating . | . . . . Part Studies Acquired 3 | . . 3 . Parts Repaired . | . . . . Time . | . . . . Parts Recycled . | . . . . Recycled Matter . | . . . . Retrieved Matter . | . . . . Retrieved Components 10 | . 10 . . Parts Scanalyzed . | . . . . Part Schematics Acquired . | . . . . Parts Damaged . | . . . . Bothacking | -11 -10 -9 -8 ------------ Run | Yrd Mat Mat Mat Used RIF Installer . | . . . . Robots Hacked . | . . . . Non-combat . | . . . . Combat . | . . . . Robot Hacks Applied . | . . . . Relay Couplers Released . | . . . . Fabnet Peak Effective % . | . . . . Robots Rewired . | . . . . Allies Hacked . | . . . . Hacks Repelled . | . . . . Allies | -11 -10 -9 -8 -------- Run | Yrd Mat Mat Mat Total Allies . | . . . . Largest Group . | . . . . Highest-Rated Group . | . . . . Highest-Rated Ally . | . . . . Total Orders . | . . . . Ally Attacks . | . . . . Total Damage . | . . . . Kills . | . . . . Allies Corrupted . | . . . . Allies Melted . | . . . . Intel | -11 -10 -9 -8 ------- Run | Yrd Mat Mat Mat Active Infowar (turns) 1080 | 14 680 301 85 Seismic 1004 | 14 680 268 42 T.N.C. 123 | . . 123 . Machine Analysis 85 | . . . 85 Robot Analysis Total 1 | . 1 . . Derelict Logs Recovered . | . . . . Drone Launches . | . . . . Drone Recoveries . | . . . . Exploration | -11 -10 -9 -8 ------------- Run | Yrd Mat Mat Mat Turns Passed 1414 | 89 791 379 155 Spaces Moved 1480 | 51 705 498 226 Core 53 | 51 2 . . Treads . | . . . . Legs 12 | . 12 . . Wheels 127 | . 127 . . Hover 781 | . 564 122 95 Flight 507 | . . 376 131 Fastest Speed 34 | 50 56 34 40 Average Speed 57 | 140 65 42 45 Slowest Speed 200 | 200 200 120 60 Overloaded Moves . | . . . . Propulsion Burnouts . | . . . . Robots Hopped 14 | . . 6 8 Potential Cave-ins . | . . . . Cave-ins Triggered . | . . . . Exploration Rate (%) 39 | 4 85 42 28 Regions Visited 3 Branch Regions . Pre-discovered Areas . | . . . . Known Exits Taken . | . . . . Unknown Exits Taken 3 | 1 1 1 . Scrap Searched . | . . . . Spaces Dug 33 | . 12 14 7 Terrain Destroyed 36 | . 15 14 7 Melee 33 | . 12 14 7 Projectile . | . . . . AOE 3 | . 3 . . Terrain Rammed . | . . . . Walls Destroyed . | . . . . Machines Disabled . | . . . . Actions | -11 -10 -9 -8 --------- Run | Yrd Mat Mat Mat Total 1815 | 63 928 573 251 Wait 137 | . 122 2 13 Move 1450 | 50 704 485 211 Hop 13 | . . 6 7 Pick Up 26 | 5 14 5 2 Fast Attach 18 | 4 3 6 5 Attach 19 | . 8 7 4 Detach 3 | . . 2 1 Swap 19 | . 8 11 . Drop 14 | . 11 3 . Fire 61 | 4 39 18 . Melee 54 | . 18 28 8 Ram 1 | . 1 . . Kick . | . . . . Crush . | . . . . Escape Stasis . | . . . . Rewire . | . . . . Trap . | . . . . Miscellaneous . | . . . . Route ------- -11/Scrapyard -10/Materials (discovered 4 exits: *Mat x2 / *Min x2) -9/Materials (discovered 2 exits: *Mat / [*Min]) -8/Materials History --------- Turn | Location | Event 13 | -11/Scrapyard | Discovered new exit (range 15) 90 | -11/Scrapyard | Entered Materials 126 | -10/Materials | Central database locked down 302 | -10/Materials | Discovered new exit (range 6) 310 | -10/Materials | Build established: Mutant 349 | -10/Materials | Core integrity fell below 50% 371 | -10/Materials | Core integrity fell below 20% 391 | -10/Materials | Lost 5 parts (1p2n1u1w) 476 | -10/Materials | Discovered new exit (range 16) 654 | -10/Materials | Discovered new exit (range 12) 706 | -10/Materials | Identified exit to Mines 790 | -10/Materials | Derelicts attacked the area 881 | -10/Materials | Entered another Materials area 881 | -9/Materials | Evolved 2 slots: Propulsion x1, Utility x1 1017 | -9/Materials | Discovered new exit (range 16) 1023 | -9/Materials | Central database locked down 1037 | -9/Materials | Lost 7 parts (1p4n1u1w) 1238 | -9/Materials | Discovered new exit (range 16) 1247 | -9/Materials | Lost 5 parts (1p3n1w) 1260 | -9/Materials | Entered another Materials area 1260 | -8/Materials | Evolved 2 slots: Propulsion x1, Utility x1 1393 | -8/Materials | Lost 5 parts (1p3n1u) 1415 | -8/Materials | Self-destructed Last Messages --------------- 01381_ K-01 Serf collects debris. 01397_ Critical hit (Burn: +37). 01397_ T-07 Excavator is excavating. 01398_ Penetrated by Slug. 01399_ >> Machine Analyzer network decryption results: 01399_ Recycling Unit x1 01402_ Connecting with Recycling Unit... >>Recycling(Report) Matter reserves: 0 Inventory: Titanium Leg (27%) Nuclear Core (25%) 01410_ Penetrated by Slug. 01410_ Mining Claw destroyed. 01412_ O-16 Technician: "IFF HANDSHAKE FAILED. SECURING TERMINAL." 01413_ Penetrated by Slug. 01413_ Gravmag System destroyed. 01414_ T-07 Excavator is excavating. Map ----- +----------------------------------------------------+ | | | | | #######??????????????????????????????????????????? | | #??????????????????????????????????????????? | | #???########???????????????????????????????? | | " """ #???# #???????????????????????????????? | | " """ #???# #???????????????????????????????? | | " """ #???# !! #???????????????????????????????? | | #???# !! *#???????????????????????????????? | | ########### ! #???????????????????????????????? | | + #???????????????????????????????? | | ###########"#####???????????????????????????????? | | ## ##???????????????????????????????????? | | # """ "" #???###############??????????????????? | | ## """ T" #???# " #??????????????????? | | ## """ "" #???# !# """ #??????????????????? | | ## #???# # """ #??????????????????? | | ## #???# "Y" + """ #??####????????????? | | ## ] * ###?# """ # """ #? #?????????? | | ##/ " ### # =#""" #?????????? | | !%###+#############/######+####""" [ #?????????? | | #""" #?????????? | | + #?????????? | | #""" [#?????????? | | ###/############## ### ####""" #?????????? | | ##?? ???????????# ##@ t#??""" [ #?????????? | | #??"""""""????????# ### #??? #?????????? | | #??"""""""????????# #?####????####????????????? | | #??"""""""????????# #?????????????????????????? | | #??"""""""????????? #?????????????????????????? | | #??"""""""????????? #?????????????????????????? | | #?????????????????? #?????????????????????????? | | ##??????????????????? #?????????????????????????? | | #########???????????? #?????????????????????????? | | + [#???????????? #?????????????????????????? | | # #???????????? ???????????????????????????? | | # "T" #????????????????????????????????????????? | | #########????????????????????????????????????????? | | ##???????????????????????????????????????????????? | | #???????????????????????????????????????????????? | | #???????????????????????????????????????????????? | | #???????????????????????????????????????????????? | | #???????????????????????????????????????????????? | | #???????????????????????????????????????????????? | | #???????????????????????????????????????????????? | | #???????????????????????????????????????????????? | | #???????????????????????????????????????????????? | | ##???????????????????????????????????????????????? | | ?????????????????????????????????????????????????? | | ?????????????????????????????????????????????????? | +----------------------------------------------------+ Best States ------------- Heat Dissipation 39 Energy Generation 10 Energy Capacity 250 Matter Stores 300 Matter Capacity 300 Sight Range 16 Terrain Scan Density 10 Weapon Shielding 33 Evasion (%) 63 Core Analysis 6 Offensive Hacking 20 Item Schematics ----------------- None Robot Schematics ------------------ None Fabricated ------------ Nothing Repaired ---------- Nothing Studied --------- Flight Unit | -9/Materials | Hacked Hover Unit | -9/Materials | Hacked Grenade Launcher | -9/Materials | Hacked Alien Tech Used ----------------- None Achievements -------------- None Challenges ------------ None Game ------ Seed TractorUltimateExpander Manual? 0 Play Time 00:30:05 Cumulative 23.5 hours Start 2025.12.27 @ 00:33:44 End 2025.12.27 @ 01:32:51 Sessions 6 Manual Loads 0 Difficulty Rogue Special Mode None Game No. 22 Rogue 22 Adventurer 0 Explorer 0 Win Type - Total 1 Types 1/0/0/0/0/0/0/0/0/0 Lore% 5 Gallery% 22 Achievement% 21 Wizard Run 0 Options --------- Layout 1 ASCII 0 Keyboard 0 Movement Mouse Keybinds 1 Fullscreen 2 Font 24/Smallcaps Map View 50x40 Zoom Use 63% Tactical HUD 1 Map Filters NONE Filters NONE Steam 1 RUN: 9137a078-d38d-4466-b793-7e974409f04f